Department Family,Date Paid,Expense Type,Expense Area,Supplier,Transaction Number,Amount,Vat Inclusive
Crown Prosecution Service ,02/12/20,New Works: non capital,Estate and FM: Programme,Blenheim House Construction Limited Chertsey,4466,"181,187.42",Y
Crown Prosecution Service ,02/12/20,Apprenticeship Levy payments Permanent,Other Corporate Programme Payments,HM Revenue and Customs,948PB000021422108,"117,902.32",
Crown Prosecution Service ,02/12/20,National Insurance payable,Balance Sheet,HM Revenue and Customs,948PB000021422108,"4,728,837.76",
Crown Prosecution Service ,02/12/20,Apprenticeship Levy payments Permanent,Other Corporate Admin Payments,HM Revenue and Customs,948PB000021422108,"7,525.68",
Crown Prosecution Service ,02/12/20,PAYE payable,Balance Sheet,HM Revenue and Customs,948PB000021422108,"4,117,547.32",
Crown Prosecution Service ,02/12/20,IT services,DTS Programme Project Cost,CGI IT UK Ltd,GB014048679,"27,397.63",Y
Crown Prosecution Service ,03/12/20,Ex Gratia Payments Civil Actions,Wessex Area Business Centre,,HC136097/JK,"30,500.00",
Crown Prosecution Service ,04/12/20,Crown Court Graduated Fee Scheme,London North Complex Casework Unit,23 Essex Street Chambers,171453-jap-trial,"35,361.41",Y
Crown Prosecution Service ,04/12/20,Crown Court Graduated Fee Scheme,SFD North,Foundry Chambers (9-12 Bell Yard),186035MBH1,"33,581.53",Y
Crown Prosecution Service ,04/12/20,Crown Court Graduated Fee Scheme,North West Crown Court Hub,Lincoln House Chambers,239745 PDW QC,"39,588.98",Y
Crown Prosecution Service ,04/12/20,External Training,Leadership and Talent Management,Cabinet Office RM Shared Services,3799350,933.73,
Crown Prosecution Service ,04/12/20,Recoverable VAT control,Balance Sheet,Cabinet Office RM Shared Services,3799350,"11,013.00",Y
Crown Prosecution Service ,04/12/20,External Training,Operational HR Costs,Cabinet Office RM Shared Services,3799350,"54,131.27",
Crown Prosecution Service ,04/12/20,Crown Court Graduated Fee Scheme,North West Crown Court Hub,Exchange Chambers - Liverpool & Leeds,555238 - AHQC,"32,596.20",Y
Crown Prosecution Service ,04/12/20,Professional subscriptions and memberships,London South RASSO,Law Society,INV200524812,"54,070.00",
Crown Prosecution Service ,04/12/20,Professional subscriptions and memberships,London North Management Team,Law Society,INV200524828,"53,036.00",
Crown Prosecution Service ,07/12/20,Recoverable VAT control,Balance Sheet,Mendip Media Group Ltd Tiverton,0000000165,"9,058.00",Y
Crown Prosecution Service ,07/12/20,Transcriptions and Translation,Other Corporate Programme Payments,Mendip Media Group Ltd Tiverton,0000000165,"45,290.00",
Crown Prosecution Service ,07/12/20,Crown Court Graduated Fee Scheme,South East Crown Court,23 Essex Street Chambers,180240-AMH,"44,472.36",Y
Crown Prosecution Service ,07/12/20,Crown Court Graduated Fee Scheme,West Midlands Complex Casework Unit,6 Kings Bench Walk- Chambers of D Fisher & D Perry,99330 SR,"35,688.58",Y
Crown Prosecution Service ,08/12/20,Transcriptions and Translation,Other Corporate Programme Payments,Epiq Europe Ltd (Wordwave),0000000875,"31,420.80",Y
Crown Prosecution Service ,08/12/20,New Works: non capital,Estate and FM: Programme,Blenheim House Construction Limited Chertsey,4487,"125,092.01",Y
Crown Prosecution Service ,08/12/20,Crown Court Very High Cost Cases Full Scheme,Cymru Wales Complex Casework Unit,30 Park Place Chambers,618080-2/AJ,"41,247.00",Y
Crown Prosecution Service ,09/12/20,Crown Court Very High Cost Cases Full Scheme,Cymru Wales Complex Casework Unit,Linenhall Chambers,618080-2/FT,"30,880.07",Y
Crown Prosecution Service ,09/12/20,Crown Court Graduated Fee Scheme,West Midlands Complex Casework Unit,No 5 Fountain Court Chambers,774260/JH/NGABA,"29,995.58",Y
Crown Prosecution Service ,09/12/20,Crown Court Graduated Fee Scheme,West Midlands Complex Casework Unit,6 Kings Bench Walk- Chambers of D Fisher & D Perry,99330 DAR,"67,691.88",Y
Crown Prosecution Service ,10/12/20,Internal Training,Prosecution College,Lumesse Limited Luton,20200757,"90,000.00",Y
Crown Prosecution Service ,10/12/20,IT services,IT Compass Contract,Accenture (UK) Ltd London,3003489583,"90,720.00",Y
Crown Prosecution Service ,10/12/20,IT services,End User Computing Contract,WIPRO Holdings London,83040477,"108,713.50",
Crown Prosecution Service ,10/12/20,Recoverable VAT control,Balance Sheet,WIPRO Holdings London,83040477,"21,742.70",Y
Crown Prosecution Service ,10/12/20,IT services,DTS Programme Project Cost,WIPRO Holdings London,83040479,"54,360.00",Y
Crown Prosecution Service ,10/12/20,IT services,DTS Programme Project Cost,WIPRO Holdings London,83040504,"28,206.00",Y
Crown Prosecution Service ,10/12/20,IT services,DTS Programme Project Cost,WIPRO Holdings London,83040509,"29,400.00",Y
Crown Prosecution Service ,10/12/20,Operating lease rentals � IT and Equipment,Print Contract,Xerox (UK) Ltd,900205311,"17,846.55",
Crown Prosecution Service ,10/12/20,Printing Costs,Print Contract,Xerox (UK) Ltd,900205311,"129,008.99",
Crown Prosecution Service ,10/12/20,Recoverable VAT control,Balance Sheet,Xerox (UK) Ltd,900205311,"29,371.11",Y
Crown Prosecution Service ,10/12/20,Recoverable VAT control,Balance Sheet,CGI IT UK Ltd,GB014049504,"27,608.00",Y
Crown Prosecution Service ,10/12/20,IT services,DTS Programme Project Cost,CGI IT UK Ltd,GB014049504,"138,040.00",
Crown Prosecution Service ,10/12/20,IT services,DTS Programme Project Cost,CGI IT UK Ltd,GB014049506,"26,791.73",
Crown Prosecution Service ,10/12/20,Recoverable VAT control,Balance Sheet,CGI IT UK Ltd,GB014049506,"5,358.35",Y
Crown Prosecution Service ,10/12/20,IT services,Apps and Hosting Contract,CGI IT UK Ltd,GB014049664,"78,195.39",
Crown Prosecution Service ,10/12/20,Recoverable VAT control,Balance Sheet,CGI IT UK Ltd,GB014049664,"15,639.08",Y
Crown Prosecution Service ,10/12/20,Crown Court Graduated Fee Scheme,Yorks and Humbs CC Legal,Park Square Barristers (No 6 and Sovereign merged),PMQC (ET) 455153,"48,944.52",Y
Crown Prosecution Service ,11/12/20,IT non capital software licences,Commercial,Jaggaer London,0000000009,"71,013.60",Y
Crown Prosecution Service ,11/12/20,Crown Court Graduated Fee Scheme,London North Complex Casework Unit,2 Hare Court Chambers -Chambers of Orlando Pownall,116209,"28,539.25",Y
Crown Prosecution Service ,11/12/20,Internal Training,HR Strategy and Inclusion,BestAtDigital Ltd Worthing,INV-0001,"75,000.00",Y
Crown Prosecution Service ,14/12/20,IT services,Financial Systems,Oracle Corporation UK Ltd,1785999,"78,222.50",Y
Crown Prosecution Service ,14/12/20,Crown Court Graduated Fee Scheme,North West Crown Court Hub,Lincoln House Chambers,241060 BOL 2,"33,649.58",Y
Crown Prosecution Service ,14/12/20,Crown Court Graduated Fee Scheme,North West Crown Court Hub,Lincoln House Chambers,241060 PCR QC,"69,051.81",Y
Crown Prosecution Service ,14/12/20,IT services,DTS Programme Project Cost,CGI IT UK Ltd,GB014049423,"116,671.60",Y
Crown Prosecution Service ,14/12/20,IT services,DTS Programme Project Cost,CGI IT UK Ltd,GB014049567,"88,022.44",Y
Crown Prosecution Service ,14/12/20,Crown Court Graduated Fee Scheme,London South Crown Court Unit,9 Gough Chambers London,JCT369218A,"26,893.80",Y
Crown Prosecution Service ,15/12/20,Other publicity and media costs,Operational HR Costs,Havas People Ltd Maidstone,133008,"35,966.52",Y
Crown Prosecution Service ,15/12/20,Recoverable VAT control,Balance Sheet,Century Link,180081270/1021884,"31,697.96",Y
Crown Prosecution Service ,15/12/20,IT services,PSN Services Contract,Century Link,180081270/1021884,"158,489.82",
Crown Prosecution Service ,15/12/20,Recoverable VAT control,Balance Sheet,Century Link,180085335/1021530,"28,268.35",Y
Crown Prosecution Service ,15/12/20,IT services,PSN Connectivity Contract,Century Link,180085335/1021530,"141,341.75",
Crown Prosecution Service ,15/12/20,Recoverable VAT control,Balance Sheet,WIPRO Holdings London,83033713,"30,891.51",Y
Crown Prosecution Service ,15/12/20,IT services,End User Computing Contract,WIPRO Holdings London,83033713,"154,457.57",
Crown Prosecution Service ,15/12/20,IT services,DTS Programme Project Cost,Mobilise Cloud Services Limited London,CPSINV006,"44,775.00",Y
Crown Prosecution Service ,15/12/20,IT services,Apps and Hosting Contract,CGI IT UK Ltd,GB014049983,"564,054.52",
Crown Prosecution Service ,15/12/20,Recoverable VAT control,Balance Sheet,CGI IT UK Ltd,GB014049983,"112,810.90",Y
Crown Prosecution Service ,15/12/20,IT services,DTS Programme Project Cost,CGI IT UK Ltd,GB014049995,"66,199.20",Y
Crown Prosecution Service ,15/12/20,IT non capital equipment and consumables,DTS Programme Project Cost,CDW Limited London,PSINV02902063,"154,858.08",Y
Crown Prosecution Service ,16/12/20,Operating lease rentals Property,Estate and FM: Administration,Government Property Agency London,00000001/5327,"27,143.01",
Crown Prosecution Service ,16/12/20,Operating lease rentals Property,Estate and FM: Programme,Government Property Agency London,00000001/5550,"26,746.38",
Crown Prosecution Service ,16/12/20,Crown Court Graduated Fee Scheme,East Midlands Crown Court Section,Seven Bedford Row,187542,"25,343.40",Y
Crown Prosecution Service ,16/12/20,Operating lease rentals Property,Estate and FM: Programme,Government Property Agency London,5330,"87,000.00",
Crown Prosecution Service ,16/12/20,Operating lease rentals Property,Estate and FM: Programme,Government Property Agency London,5332,"48,123.00",
Crown Prosecution Service ,16/12/20,Operating lease rentals Property,Estate and FM: Programme,Government Property Agency London,5333,"210,288.00",
Crown Prosecution Service ,16/12/20,Operating lease rentals Property,Estate and FM: Programme,Government Property Agency London,5334,"244,327.50",
Crown Prosecution Service ,16/12/20,Operating lease rentals Property,Estate and FM: Programme,Government Property Agency London,5336,"35,137.35",
Crown Prosecution Service ,16/12/20,Operating lease rentals Property,Estate and FM: Programme,Government Property Agency London,5338,"106,451.25",
Crown Prosecution Service ,16/12/20,Operating lease rentals Property,Estate and FM: Administration,Government Property Agency London,5422,"194,402.05",
Crown Prosecution Service ,16/12/20,Operating lease rentals Property,Estate and FM: Programme,Government Property Agency London,5422,"949,139.40",
Crown Prosecution Service ,16/12/20,Operating lease rentals Property,Estate and FM: Programme,Government Property Agency London,5475,"156,900.00",
Crown Prosecution Service ,16/12/20,Operating lease rentals Property,Estate and FM: Programme,Government Property Agency London,5478,"36,242.48",
Crown Prosecution Service ,16/12/20,Operating lease rentals Property,Estate and FM: Administration,Government Property Agency London,5478,"36,242.47",
Crown Prosecution Service ,16/12/20,Operating lease rentals Property,Estate and FM: Programme,Government Property Agency London,5479,"80,407.80",
Crown Prosecution Service ,16/12/20,Operating lease rentals Property,Estate and FM: Administration,Government Property Agency London,5533,"35,778.15",
Crown Prosecution Service ,16/12/20,Operating lease rentals Property,Estate and FM: Programme,Government Property Agency London,5534,"66,875.00",
Crown Prosecution Service ,16/12/20,Operating lease rentals Property,Estate and FM: Programme,Government Property Agency London,5535,"26,640.00",
Crown Prosecution Service ,16/12/20,Operating lease rentals Property,Estate and FM: Programme,Government Property Agency London,5538,"35,100.00",
Crown Prosecution Service ,16/12/20,Operating lease rentals Property,Estate and FM: Programme,Government Property Agency London,5540,"55,500.00",
Crown Prosecution Service ,16/12/20,Operating lease rentals Property,Estate and FM: Programme,Government Property Agency London,5541,"73,633.88",
Crown Prosecution Service ,16/12/20,Operating lease rentals Property,Estate and FM: Programme,Government Property Agency London,5543,"57,402.60",
Crown Prosecution Service ,16/12/20,Operating lease rentals Property,Estate and FM: Programme,Government Property Agency London,5544,"30,900.01",
Crown Prosecution Service ,16/12/20,Operating lease rentals Property,Estate and FM: Programme,Government Property Agency London,5545,"47,000.00",
Crown Prosecution Service ,16/12/20,Operating lease rentals Property,Estate and FM: Programme,Government Property Agency London,5546,"39,900.00",
Crown Prosecution Service ,16/12/20,Crown Court Graduated Fee Scheme,West Midlands Crown Court Unit,New Park Court Chambers Leeds,DEQC - St Ives,"27,099.06",Y
Crown Prosecution Service ,16/12/20,Crown Court Graduated Fee Scheme,Yorks and Humbs CC Legal,Park Square Barristers (No 6 and Sovereign merged),KR 455260,"26,043.32",Y
Crown Prosecution Service ,16/12/20,IT non capital equipment and consumables,DTS Programme Project Cost,CDW Limited London,PSINV02948361,"565,278.00",Y
Crown Prosecution Service ,16/12/20,IT non capital equipment and consumables,DTS Programme Project Cost,CDW Limited London,PSINV02961524,"113,055.60",Y
Crown Prosecution Service ,16/12/20,IT non capital equipment and consumables,DTS Programme Project Cost,CDW Limited London,PSINV02963420,"143,325.60",Y
Crown Prosecution Service ,17/12/20,Crown Court Graduated Fee Scheme,London North Complex Casework Unit,2 Hare Court Chambers -Chambers of Orlando Pownall,115159!,"33,615.00",Y
Crown Prosecution Service ,17/12/20,Crown Court Graduated Fee Scheme,London North Crown Court Unit,23 Essex Street Chambers,176927-KL-TRIAL,"28,584.00",Y
Crown Prosecution Service ,17/12/20,IT services,PSN Services Contract,Century Link,180560494/1024074,"40,068.48",Y
Crown Prosecution Service ,17/12/20,Crown Court Graduated Fee Scheme,South East Crown Court,23 Essex Street Chambers,180757-KL,"27,899.64",Y
Crown Prosecution Service ,17/12/20,IT services,DTS Programme Project Cost,Accenture (UK) Ltd London,3003491693,"43,200.00",Y
Crown Prosecution Service ,17/12/20,Magistrates' Court Very High Cost Cases Full Scheme,Extradition,3 Raymond Buildings,JL/246714/1,"27,714.00",Y
Crown Prosecution Service ,17/12/20,Crown Court Graduated Fee Scheme,London North Complex Casework Unit,QEB Hollis Whiteman Chambers,PDY/107816,"25,795.99",Y
Crown Prosecution Service ,18/12/20,Crown Court Graduated Fee Scheme,West Midlands Crown Court Unit,6 Kings Bench Walk- Chambers of D Fisher & D Perry,101095 Natt,"29,474.52",Y
Crown Prosecution Service ,18/12/20,Recoverable VAT control,Balance Sheet,Trustmarque Solutions Ltd,2310350,"5,634.78",Y
Crown Prosecution Service ,18/12/20,IT non capital software licences,Legal Reference and ICT Licenses,Trustmarque Solutions Ltd,2310350,"28,173.90",
Crown Prosecution Service ,18/12/20,IT non capital software licences,Legal Reference and ICT Licenses,Trustmarque Solutions Ltd,2310836,"64,651.30",Y
Crown Prosecution Service ,18/12/20,Crown Court Graduated Fee Scheme,Yorks and Humbs CC Legal,New Park Court Chambers Leeds,356249/NLQC,"32,060.42",Y
Crown Prosecution Service ,18/12/20,Professional subscriptions and memberships,Director of Finance,Cabinet Office RM Shared Services,3799951,"30,439.00",
Crown Prosecution Service ,18/12/20,Crown Court Graduated Fee Scheme,East Midlands Crown Court Section,Seven Bedford Row,botan,"72,543.36",Y
Crown Prosecution Service ,18/12/20,Crown Court Graduated Fee Scheme,East Midlands Crown Court Section,Seven Bedford Row,BOTAN-DST,"30,828.48",Y
Crown Prosecution Service ,18/12/20,Professional subscriptions and memberships,Operational Change,Crimeline Training Ltd Wigan,INV-11823,"37,867.50",Y
Crown Prosecution Service ,18/12/20,Salary sacrifice suspense,Balance Sheet,Edenred,INV22906025,"38,077.50",
Crown Prosecution Service ,18/12/20,Other Staff Costs,Finance Operations,Edenred,INV22906025,779.20,
Crown Prosecution Service ,18/12/20,Crown Court Graduated Fee Scheme,London North Complex Casework Unit,QEB Hollis Whiteman Chambers,PRA/107816,"38,842.98",Y
Crown Prosecution Service ,18/12/20,Crown Court Graduated Fee Scheme,London North Complex Casework Unit,9 Gough Chambers London,TL362247W,"47,168.73",Y
Crown Prosecution Service ,21/12/20,IT Professional Services Design & Development Hardware & Software: Non Capital Purchases,DTS Programme Project Cost,ICS.AI Ltd Basingstoke,INV-169,"25,233.00",Y
Crown Prosecution Service ,22/12/20,External legal advice - HR casework,Litigation,Government Legal Department,488248,"25,149.61",Y
Crown Prosecution Service ,22/12/20,Crown Court Graduated Fee Scheme,South East Crown Court,3PB (3 Paper Buildings),GWH359809,"27,297.65",Y
Crown Prosecution Service ,22/12/20,IT non capital equipment and consumables,DTS Programme Project Cost,CDW Limited London,PSINV02985521,"863,358.35",Y
Crown Prosecution Service ,22/12/20,New Works: non capital,Estate and FM: Programme,Apleona Workspace Solutions Ltd Motherwell,SI2011972,"26,511.32",Y
Crown Prosecution Service ,23/12/20,Postage,London North Magistrates Court Unit,DX Network Services Ltd,82887507,19.65,
Crown Prosecution Service ,23/12/20,Recoverable VAT control,Balance Sheet,DX Network Services Ltd,82887507,"12,000.00",Y
Crown Prosecution Service ,23/12/20,Postage,South East Business Centre,DX Network Services Ltd,82887507,"6,106.47",
Crown Prosecution Service ,23/12/20,Postage,Estate and FM: Programme,DX Network Services Ltd,82887507,"15,601.22",
Crown Prosecution Service ,23/12/20,Postage,Thames and Chiltern Area Business Centre,DX Network Services Ltd,82887507,"2,267.96",
Crown Prosecution Service ,23/12/20,Postage,Estate and FM: Administration,DX Network Services Ltd,82887507,"3,606.06",
Crown Prosecution Service ,23/12/20,Postage,East Midlands Area Business Centre,DX Network Services Ltd,82887507,"6,139.43",
Crown Prosecution Service ,23/12/20,Postage,Wessex Area Business Centre,DX Network Services Ltd,82887507,"3,205.94",
Crown Prosecution Service ,23/12/20,Postage,Cymru Wales South East Magistrates Court,DX Network Services Ltd,82887507,"1,811.10",
Crown Prosecution Service ,23/12/20,Postage,North West Magistrates Court Hub,DX Network Services Ltd,82887507,"5,184.01",
Crown Prosecution Service ,23/12/20,Postage,South West Area Business Centre,DX Network Services Ltd,82887507,"2,510.19",
Crown Prosecution Service ,23/12/20,Postage,East of England Area Business Centre,DX Network Services Ltd,82887507,"2,215.91",
Crown Prosecution Service ,23/12/20,Postage,SFD North,DX Network Services Ltd,82887507,46.92,
Crown Prosecution Service ,23/12/20,Postage,West Midlands Area Business Centre,DX Network Services Ltd,82887507,"4,715.53",
Crown Prosecution Service ,23/12/20,Postage,North East Area Business Centre,DX Network Services Ltd,82887507,"2,483.41",
Crown Prosecution Service ,23/12/20,Postage,Yorks and Humbs Mags Court Legal,DX Network Services Ltd,82887507,"2,897.10",
Crown Prosecution Service ,23/12/20,Postage,Mersey Cheshire Area Business Centre,DX Network Services Ltd,82887507,"1,189.10",
Crown Prosecution Service ,23/12/20,Crown Court Graduated Fee Scheme,South East Crown Court,3PB (3 Paper Buildings),ASF-359809,"51,861.73",Y
Crown Prosecution Service ,23/12/20,IT services,DTS Programme Project Cost,FlyForm LTD Cardiff,INV-10144,"26,862.00",Y
Crown Prosecution Service ,29/12/20,IT Professional Services Design & Development Hardware & Software: Non Capital Purchases,DTS Programme Project Cost,Equal Experts London,INV-8006,"101,691.00",Y
Crown Prosecution Service ,29/12/20,IT Professional Services Design & Development Hardware & Software: Non Capital Purchases,DTS Programme Project Cost,Equal Experts London,INV-8161,"100,062.00",Y
Crown Prosecution Service ,29/12/20,Crown Court Graduated Fee Scheme,West Midlands Crown Court Unit,QEB Hollis Whiteman Chambers,SL/107935,"53,981.62",Y
